bitfinex/quotes_ETHUSD_20220309
["timestamp","ask_amount","ask_price","bid_price","bid_amount"]
[1646866905989,2.8838655,2715.5,2715.2,0.00379941]
[1646866906187,0.92143,2715.4,2715.2,0.00379941]
[1646866906387,0.92143,2715.4,2715.2,0.91259252]
[1646866906833,0.92143,2715.4,2715.1,0.9576372]
[1646866907039,0.89002519,2715.5,2715.2,0.00368544]
[1646866907237,0.9213268,2715.6,2715.2,0.00368544]
[1646866907437,0.9213268,2715.6,2715.4,0.68283185]
[1646866907639,0.92142,2715.5,2715.4,0.68283185]
[1646866908040,0.92142,2715.5,2715.4,0.04707514]
[1646866908239,1.22142,2715.5,2715.4,0.05076048]
[1646866908638,1.22142,2715.5,2715.4,0.73631068]
[1646866908838,1.22142,2715.5,2715.4,0.05252943]
[1646866909039,1.22142,2715.5,2715.4,0.09960457]
[1646866909243,1.22142,2715.5,2715.4,0.09591923]
[1646866909441,1.22142,2715.5,2715.4,0.77970048]
[1646866909640,1.22142,2715.5,2715.4,0.09768818]
[1646866910041,1.22142,2715.5,2715.4,0.82854457]
[1646866910688,1.22142,2715.5,2715.4,0.14653227]
[1646866911790,1.21965105,2715.5,2715.4,0.09945713]
[1646866911989,1.66065105,2715.5,2715.4,0.09945713]
[1646866914090,1.66065105,2715.5,2715.4,0.78323838]
[1646866914843,1.66065105,2715.5,2715.4,0.14653227]
[1646866915744,1.66065105,2715.5,2715.1,0.6849351]
[1646866915944,1.66065105,2715.5,2715.4,0.04707514]
[1646866916847,1.66065105,2715.5,2715.4,0.09415028]
[1646866916848,0.29823105,2715.5,2715.4,0.09415028]
[1646866917246,0.3,2715.7,2715.4,1.62354166]
[1646866917544,3.1424555,2715.8,2715.5,1.52939138]
[1646866918182,2.1424555,2715.8,2715.5,1.52939138]
[1646866918379,3.1424555,2715.8,2715.6,1.52939138]
[1646866918583,2.1424555,2715.8,2715.7,1.52939138]
[1646866918783,3.1424555,2715.8,2715.7,1.52939138]
[1646866918983,2.1424555,2715.8,2715.5,1.52939138]
[1646866919184,2.1424555,2715.8,2715.6,1.52939138]
[1646866919185,3.1424555,2715.8,2715.6,1.52939138]
[1646866919389,2.1424555,2715.8,2715.7,1.52939138]
[1646866919588,3.1424555,2715.8,2715.7,1.52939138]
[1646866919786,2.09538036,2715.8,2715.5,1.52939138]
[1646866919988,3.09538036,2715.8,2715.6,1.52939138]
[1646866920186,3.09538036,2715.8,2715.7,1.52939138]
[1646866920386,2.09538036,2715.8,2715.7,1.52939138]
[1646866920587,3.09538036,2715.8,2715.5,1.52939138]
[1646866920889,2.09538036,2715.8,2715.6,1.52939138]
[1646866921087,2.09538036,2715.8,2715.4,0.04707514]
[1646866921088,3.09538036,2715.8,2715.7,1.52939138]
[1646866921287,2.09538036,2715.8,2715.5,1.52939138]
[1646866921487,1.8424555,2715.8,2715.5,1.52939138]
[1646866922732,2.1424555,2715.8,2715.5,1.52939138]
[1646866924034,0.92146,2715.7,2715.5,1.52939138]
[1646866924234,1.22146,2715.7,2715.5,1.52939138]
[1646866924441,1.66246,2715.7,2715.5,1.52939138]
[1646866924940,1.66246,2715.7,2715.4,0.04707514]
[1646866925339,0.950588,2715.5,2715.0,0.11392825]
[1646866925582,0.9213898,2715.4,2715.0,0.11392825]
[1646866925782,1.2213898,2715.4,2715.0,0.11392825]
[1646866926988,1.250588,2715.5,2715.4,0.41022842]
[1646866927185,0.950588,2715.5,2715.4,0.41022842]
[1646866928186,0.92142,2715.5,2715.4,0.41022842]
[1646866928585,1.36242,2715.5,2715.4,0.41022842]
[1646866930237,0.92142,2715.5,2715.4,0.41022842]
[1646866930539,1.3,2715.6,2715.4,0.41022842]
[1646866930746,1.2214098,2715.7,2715.4,0.41022842]
[1646866931338,0.92124,2715.8,2715.4,0.41022842]
[1646866939238,0.92124,2715.8,2715.4,1.09516352]
[1646866941986,0.92124,2715.8,2715.4,0.41022842]
[1646866943685,0.92124,2715.8,2715.2,0.6849351]
[1646866943885,1.36224,2715.8,2715.1,0.00358562]
[1646866944089,1.36224,2715.8,2715.0,0.11751387]
[1646866944090,0.9215423,2715.7,2715.0,0.11751387]
[1646866944346,0.92154,2715.5,2715.1,0.00358529]
[1646866944548,0.441,2715.4,2715.1,0.00358529]
[1646866944943,0.441,2715.4,2715.1,1.53336115]
[1646866945147,0.441,2715.4,2715.2,1.52977586]
[1646866945344,0.441,2715.4,2715.3,1.52977586]
[1646866945743,0.441,2715.4,2715.1,1.52977586]
[1646866946357,1.3624351,2715.4,2715.1,1.52977586]
[1646866947545,0.92154,2715.5,2715.4,1.19070942]
[1646866947746,1.36254,2715.5,2715.4,1.19070942]
[1646866947986,1.36254,2715.5,2715.4,2.72048528]
[1646866948188,0.56447839,2715.7,2715.4,2.72048528]
[1646866948386,0.56447839,2715.7,2715.5,1.52977586]
[1646866961742,0.56447839,2715.7,2715.5,1.52675413]
[1646866965391,1.84276,2715.6,2715.5,1.52675413]
[1646866970247,1.871928,2715.6,2715.5,1.52675413]
[1646866971795,0.24042393,2715.6,2715.5,1.52675413]
[1646866972394,0.029168,2715.6,2715.5,1.52675413]
[1646866974852,2.78584839,2715.7,2715.5,1.52675413]
[1646866975452,2.78584839,2715.7,2715.6,3.5]
[1646866975453,1.3,2715.7,2715.6,3.5]
[1646866975656,0.3,2715.7,2715.4,2.24502563]
[1646866975853,0.3,2715.7,2715.5,0.68651621]
[1646866976058,0.96824802,2716.1,2715.5,4.18651621]
[1646866976257,1.26824802,2716.1,2715.5,4.18651621]
[1646866976454,1.250328,2716.1,2715.5,4.18651621]
[1646866976657,1.25391226,2716.1,2715.5,0.68651621]
[1646866977054,1.25391226,2716.1,2715.5,4.18651621]
[1646866977657,1.250328,2716.1,2715.5,4.18651621]
[1646866977855,1.25391226,2716.1,2715.5,0.68651621]
[1646866978089,1.25391226,2716.1,2715.6,0.68651621]
[1646866978689,1.25391226,2716.1,2715.5,0.68651621]
[1646866978896,1.250328,2716.1,2715.5,0.68651621]
[1646866979092,0.029168,2715.9,2715.5,0.68651621]
[1646866979292,0.029168,2715.9,2715.4,1.87722563]
[1646866980192,0.029168,2715.9,2715.5,0.68651621]
[1646866980392,0.33275213,2716.1,2715.5,4.18651621]
[1646866980793,0.33275213,2716.1,2715.4,2.24502563]
[1646866981194,0.329168,2716.1,2715.5,4.18651621]
[1646866981403,0.029168,2715.6,2715.5,4.18651621]
[1646866981595,0.029168,2715.6,2715.5,5.02925643]
[1646866981859,0.029168,2715.8,2715.5,1.52925643]
[1646866982057,0.029168,2715.8,2715.6,0.68646444]
[1646866982260,0.0035842,2716.1,2715.6,0.68646444]
[1646866982457,0.54548466,2716.5,2715.6,0.68646444]
[1646866982458,0.029168,2716.0,2715.6,2.21572087]
[1646866983464,0.029168,2716.0,2715.6,1.52925643]
[1646866985065,0.029168,2716.0,2715.7,1.52925643]
[1646866985271,0.029168,2716.0,2715.8,1.52925643]
[1646866985486,0.029168,2716.0,2715.9,1.52925643]
[1646866985686,0.029168,2716.0,2715.6,1.52925643]
[1646866986289,0.029168,2716.0,2715.7,1.52925643]
[1646866986488,0.029168,2716.0,2715.6,1.52925643]
[1646866986696,0.029168,2716.0,2715.7,1.52925643]
[1646866986893,0.029168,2716.0,2715.8,1.52925643]
[1646866987091,0.029168,2716.0,2715.9,1.52925643]
[1646866987290,0.92115,2716.0,2715.9,1.52925643]
[1646866987689,0.92115,2716.0,2715.5,1.52925643]
[1646866987690,1.22115,2716.0,2715.5,1.52925643]
[1646866987891,1.22115,2716.0,2715.9,1.52925643]
[1646866988091,1.250318,2716.0,2715.5,1.52925643]
[1646866988294,1.250318,2716.0,2715.6,1.52925643]
[1646866988492,1.22115,2716.0,2715.7,1.52925643]
[1646866988694,1.22115,2716.0,2715.8,1.52925643]
[1646866988993,1.22115,2716.0,2715.9,1.52925643]
[1646866989251,2.1423958,2716.0,2715.5,1.52925643]
[1646866989439,2.1423958,2716.0,2715.6,1.52925643]
[1646866989639,2.1423958,2716.0,2715.7,1.52925643]
[1646866989838,2.1423958,2716.0,2715.8,1.52925643]
[1646866990040,2.1423958,2716.0,2715.9,1.52925643]
[1646866990840,1.22115,2716.0,2715.5,1.52925643]
[1646866991044,1.22115,2716.0,2715.6,1.52925643]
[1646866991243,1.22115,2716.0,2715.7,1.52925643]
[1646866991442,1.22115,2716.0,2715.8,1.52925643]
[1646866991643,1.22115,2716.0,2715.9,1.52925643]
[1646866992046,1.22115,2716.0,2715.5,1.52925643]
[1646866992244,1.22115,2716.0,2715.6,1.52925643]
[1646866992444,1.22115,2716.0,2715.7,1.52824838]
[1646866992647,3.941,2715.9,2715.4,1.19070942]
[1646866992848,3.941,2715.9,2715.0,0.00358583]
[1646866992849,13.23,2715.8,2715.0,0.00358583]
[1646866993092,11.23,2715.4,2714.2,0.90879311]
[1646866993294,11.23,2715.4,2713.6,1.37098903]
[1646866993295,5.0,2715.1,2713.6,1.37098903]
[1646866993494,1.38412,2715.4,2714.3,0.04149491]
[1646866993495,11.23,2714.8,2714.3,0.04149491]
[1646866993694,11.23,2714.6,2713.7,0.01434829]
[1646866993894,11.23,2714.6,2712.8,1.37098903]
[1646866993895,11.23,2714.1,2712.8,1.37098903]
[1646866994199,11.23,2714.1,2712.7,0.06428008]
[1646866994200,11.23,2713.7,2712.7,0.06428008]
[1646866994404,11.23,2713.5,2712.7,0.06428008]
[1646866994596,0.441,2713.4,2712.7,0.06428008]
[1646866994795,0.741,2713.4,2712.7,0.06428008]
[1646866995195,0.029168,2712.8,2712.7,0.06428008]
[1646866995396,1.30497401,2712.8,2712.7,0.06428008]
[1646866995798,1.60497401,2712.8,2712.7,0.06428008]
[1646866996000,1.60497401,2712.8,2712.7,0.0356091]
[1646866996198,1.60497401,2712.8,2712.7,0.05934642]
[1646867001501,1.60497401,2712.8,2712.7,0.03514086]
[1646867004100,1.8,2712.7,2712.6,0.02280708]
[1646867004343,0.441,2712.7,2712.6,0.02280708]
[1646867004746,0.941,2712.7,2712.6,0.02280708]
[1646867006649,0.93619083,2712.7,2712.6,0.02280708]
[1646867010399,0.49519083,2712.7,2712.6,0.02280708]
[1646867010798,0.5,2713.1,2712.6,0.02280708]
[1646867011001,0.00353931,2714.0,2712.6,3.39060708]
[1646867011201,0.00353931,2714.0,2712.7,3.8678]
[1646867011202,0.4944,2712.8,2712.7,3.8678]
[1646867011402,1.84384,2713.9,2713.0,0.9888]
[1646867011599,1.84384,2713.9,2713.1,3.5]
[1646867012239,0.5,2713.7,2713.1,3.5]
[1646867012439,0.92191,2713.6,2713.1,3.5]
[1646867012642,0.5,2713.7,2713.1,3.5]
[1646867012840,1.84384,2713.9,2713.1,3.5]
[1646867013645,2.14384,2713.9,2713.1,3.5]
[1646867013845,2.14384,2713.9,2713.1,3.8678]
[1646867014046,0.3,2713.9,2713.1,3.8678]
[1646867014244,0.30342815,2714.0,2713.1,3.8678]
[1646867014448,0.00342815,2714.0,2713.2,1.53055044]
[1646867014650,0.00342815,2714.0,2713.3,3.5]
[1646867015048,0.441,2714.2,2713.3,3.5]
[1646867015253,0.00334004,2714.0,2713.3,3.5]
[1646867015519,3.7653901,2714.3,2714.2,0.88868008]
[1646867016324,4.0653901,2714.3,2714.2,0.88868008]
[1646867016521,4.3653901,2714.3,2714.2,0.88868008]
[1646867016722,2.0,2714.2,2713.2,3.5]
[1646867016924,12.1519239,2714.0,2713.0,0.9888]
[1646867017126,1.84427,2713.8,2713.0,0.9888]
[1646867017325,0.441,2713.7,2713.0,0.9888]
[1646867017733,3.44184388,2713.6,2713.0,0.9888]
[1646867017926,0.441,2713.5,2713.0,0.9888]
[1646867018124,0.92217,2713.4,2713.0,0.9888]
[1646867018324,0.441,2713.3,2713.0,0.9888]
[1646867018723,0.741,2713.3,2713.0,0.9888]
[1646867018923,0.741,2713.3,2713.1,0.00355685]
[1646867019747,0.741,2713.3,2713.0,0.9888]
[1646867020146,0.741,2713.3,2713.1,0.00355685]
[1646867020949,0.741,2713.3,2713.0,0.9888]
[1646867021148,0.741,2713.3,2713.1,0.00354704]
[1646867021356,6.0221672,2713.2,2713.0,0.00354704]
[1646867021655,1.3633,2713.1,2713.0,0.00354704]
[1646867029355,0.441,2713.1,2713.0,0.00354704]
[1646867031101,0.441,2713.1,2713.0,1.53445374]
[1646867033202,0.441,2713.1,2713.0,0.00354704]
[1646867033403,0.441,2713.1,2713.0,1.53445374]
[1646867034259,0.441,2713.1,2712.7,0.02280708]
[1646867034260,0.92218,2713.0,2712.7,0.02280708]
[1646867034460,0.92218,2713.0,2712.9,0.00358035]
[1646867034752,1.22218,2713.0,2712.9,0.00358035]
[1646867035455,0.3,2713.0,2712.7,0.02280708]
[1646867035654,0.3,2713.0,2712.8,0.0035804]
[1646867035854,1.811285,2713.2,2712.8,0.0035804]
[1646867036053,0.811285,2713.2,2712.8,0.0035804]
[1646867036358,0.92218,2713.0,2712.8,0.0035804]
[1646867036554,0.92218,2713.0,2712.7,0.02280708]
[1646867036955,0.92218,2713.0,2712.9,0.00358037]
[1646867037155,1.22218,2713.0,2712.9,0.00358037]
[1646867037992,1.22218,2713.0,2712.8,0.00358046]
[1646867038794,0.441,2712.9,2712.8,0.00358046]
[1646867038997,1.3633396,2712.9,2712.7,0.02280708]
[1646867039194,1.3633396,2712.9,2712.8,0.00358048]
[1646867039597,1.3633396,2712.9,2712.7,0.02134376]
[1646867041612,1.3633396,2712.9,2712.7,0.02256734]
[1646867042445,1.3633396,2712.9,2712.7,0.02134376]
[1646867042844,1.3633396,2712.9,2712.7,0.02256734]
[1646867043646,1.3633396,2712.9,2712.7,0.02134376]
[1646867044048,1.3633396,2712.9,2712.7,0.02492697]
[1646867044956,1.3633396,2712.9,2712.7,0.0242704]
[1646867045151,1.3633396,2712.9,2712.7,0.02793047]
[1646867046202,1.3633396,2712.9,2712.7,0.0242704]
[1646867046404,1.3633396,2712.9,2712.7,0.02793047]
[1646867047405,1.3633396,2712.9,2712.7,0.0242704]
[1646867047604,1.3633396,2712.9,2712.7,0.02793047]
[1646867048405,1.36088221,2712.9,2712.7,0.02793047]
[1646867048604,1.36088221,2712.9,2712.7,0.0242704]
[1646867048805,1.36088221,2712.9,2712.7,0.02772299]
[1646867049658,1.36088221,2712.9,2712.7,0.0242704]
[1646867050055,1.36088221,2712.9,2712.7,0.02772299]
[1646867050955,1.36088221,2712.9,2712.7,0.0242704]
[1646867051155,1.36088221,2712.9,2712.7,0.02772299]
[1646867052162,1.36088221,2712.9,2712.7,0.0242704]
[1646867052360,1.36088221,2712.9,2712.7,0.02774011]
[1646867053398,1.36088221,2712.9,2712.7,0.0242704]
[1646867053597,1.36088221,2712.9,2712.7,0.02774011]
[1646867054196,1.36088221,2712.9,2712.8,1.53113163]
[1646867055704,0.441,2712.9,2712.8,1.53113163]
[1646867056308,0.441,2712.9,2712.8,1.61018681]
[1646867056505,1.22218,2713.0,2712.8,1.61018681]
[1646867056758,1.22218,2713.0,2712.8,0.07905518]
[1646867057047,1.22218,2713.0,2712.7,0.0242704]
[1646867057248,1.22218,2713.0,2712.8,1.61394084]
[1646867057550,1.22218,2713.0,2712.9,1.53109959]
[1646867058347,1.22218,2713.0,2712.7,0.02761809]
[1646867058348,1.66318,2713.0,2712.7,0.02761809]
[1646867058547,1.66318,2713.0,2712.8,1.53107889]
[1646867060904,5.10502388,2713.0,2712.8,1.53107889]
[1646867061100,6.10502388,2713.0,2712.8,1.53107889]
[1646867062100,2.66318,2713.0,2712.8,1.53107889]
[1646867062300,1.66318,2713.0,2712.8,1.53107889]
[1646867062498,2.66318,2713.0,2712.8,1.53107889]
[1646867062702,1.66318,2713.0,2712.8,1.53107889]
[1646867063301,1.66318,2713.0,2712.9,0.08435449]
[1646867063599,1.66318,2713.0,2712.9,1.61543338]
[1646867068999,1.66318,2713.0,2712.9,1.53107889]
[1646867069403,1.66318,2713.0,2712.8,1.53107889]
[1646867069804,1.66318,2713.0,2712.8,1.52970949]
[1646867071881,5.10502388,2713.0,2712.8,1.52970949]
[1646867072249,6.10502388,2713.0,2712.8,1.52970949]
[1646867079654,6.10502388,2713.0,2712.7,0.02762911]
[1646867079857,6.10502388,2713.0,2712.7,0.0242704]
[1646867080054,6.10502388,2713.0,2712.7,0.02762911]
[1646867080454,8.01176731,2713.0,2712.7,0.02762911]
[1646867081062,8.01176731,2713.0,2712.7,0.0242704]
[1646867084802,8.01176731,2713.0,2712.7,0.02791378]
[1646867085004,8.71497716,2713.0,2712.7,0.02791378]
[1646867085903,8.71497716,2713.0,2712.7,0.0242704]
[1646867086106,8.71497716,2713.0,2712.7,0.02791378]
[1646867087155,8.71497716,2713.0,2712.7,0.0242704]
[1646867087553,9.89062013,2713.0,2712.7,0.0242704]
[1646867087754,3.5,2712.9,2712.7,0.0242704]
[1646867087957,0.441,2712.8,2712.7,0.0242704]
[1646867088153,3.88284388,2712.8,2712.7,0.0242704]
[1646867088353,3.44184388,2712.8,2712.7,0.0534384]
[1646867088557,0.92246,2712.9,2712.7,0.0534384]
[1646867088760,0.5447508,2713.3,2712.8,0.029168]
[1646867088761,2.7663189,2713.3,2712.8,0.029168]
[1646867088957,0.92204,2713.3,2713.2,0.029168]
[1646867089155,0.00211341,2713.5,2713.2,0.029168]
[1646867089363,0.19230003,2714.4,2713.4,0.029168]
[1646867089577,4.6292,2715.0,2713.4,0.029168]
[1646867089578,0.07011,2714.8,2714.3,0.029168]
[1646867089761,0.07011,2714.8,2714.5,0.3678]
[1646867089762,1.8433996,2714.7,2714.5,0.3678]
[1646867089960,0.92155,2714.8,2714.7,0.08054279]
[1646867090261,0.07012,2715.3,2714.7,0.08054279]
[1646867090514,0.0141309,2715.5,2714.7,0.08054279]
[1646867090515,7.3341309,2715.5,2714.7,0.08054279]
[1646867090711,7.32,2715.5,2714.7,0.08054279]
[1646867090907,0.55830153,2715.8,2714.7,0.08054279]
[1646867091110,0.00353451,2715.1,2714.9,0.08310798]
[1646867091311,0.00353451,2715.1,2715.0,0.45530318]
[1646867091511,0.00353451,2715.1,2715.0,3.95530318]
[1646867091909,0.55830153,2715.8,2715.1,0.08626305]
[1646867092317,0.55830153,2715.8,2714.8,0.0748807]
[1646867092318,0.00354419,2715.2,2714.8,0.0748807]
[1646867092612,0.00354419,2715.2,2714.4,0.08340895]
[1646867092808,0.00354419,2715.2,2714.6,0.09027034]
[1646867093010,0.00354419,2715.2,2714.2,0.06190199]
[1646867093210,0.04505433,2715.7,2714.3,1.53002437]
[1646867093413,0.00354432,2714.9,2714.4,3.58389359]
[1646867093612,0.00354432,2714.9,2714.5,0.07783039]
[1646867094112,0.00354432,2714.9,2714.2,0.06190199]
[1646867094362,1.84329,2714.9,2713.8,3.94699264]
[1646867094561,0.00332701,2714.8,2713.9,1.61192292]
[1646867094758,0.00332701,2714.8,2714.0,0.07713596]
[1646867094968,0.00332701,2714.8,2713.4,0.10593655]
[1646867095160,0.00332701,2714.8,2713.6,0.3678]
[1646867095359,0.00332701,2714.8,2713.7,5.398084]
[1646867095559,2.8944,2714.9,2713.8,1.61265519]
[1646867095758,3.8944,2714.9,2713.9,5.10583885]
[1646867095960,3.8944,2714.9,2714.1,0.08908109]
[1646867095961,0.00332394,2714.2,2714.1,0.08908109]
[1646867096162,0.00332394,2714.2,2714.1,3.58908109]
[1646867096462,0.00332394,2714.2,2713.9,0.08123812]
[1646867096662,0.3,2714.9,2714.0,1.5301831]
[1646867096858,0.3,2714.9,2714.1,3.5]
[1646867097060,0.00332392,2714.3,2713.5,3.8678]
[1646867097260,0.00332392,2714.3,2713.6,1.53025165]
[1646867097460,0.00332392,2714.3,2713.7,3.5]
[1646867097659,0.00332392,2714.3,2713.8,1.53025165]
[1646867097858,3.2841243,2715.2,2713.9,3.5]
[1646867097859,0.05001152,2715.1,2713.9,3.5]
[1646867098104,0.00333659,2714.1,2714.0,0.07238159]
[1646867098506,0.00333659,2714.1,2713.7,0.08436636]
[1646867098707,1.2216012,2714.9,2714.1,0.00667317]
[1646867099110,0.3,2714.9,2714.1,0.00667317]
[1646867099506,3.14323,2715.0,2714.1,0.00667317]
[1646867099706,0.3,2715.0,2714.1,0.00667317]
[1646867099906,1.3,2715.0,2714.1,0.00667317]
[1646867100308,0.3,2715.0,2714.1,0.00667317]
[1646867100506,2.2215,2715.1,2714.1,0.00667317]
[1646867100708,1.2215,2715.1,2714.1,0.00667317]
[1646867102757,0.3,2715.1,2714.1,0.00667317]
[1646867102958,0.00378295,2714.7,2714.1,0.00667317]
[1646867103159,0.00378295,2714.7,2714.1,0.45712979]
[1646867103355,0.00378295,2714.7,2714.3,0.3678]
[1646867103757,0.00378295,2714.7,2714.3,0.4444715]
[1646867103957,0.07004,2715.6,2714.5,1.28897]
[1646867104156,4.6017,2715.7,2714.7,0.06956419]
[1646867104367,0.01512728,2715.5,2714.7,2.31387434]
[1646867104564,0.01512728,2715.5,2714.8,0.08599624]
[1646867105160,3.62845488,2716.0,2714.8,0.08599624]
[1646867105360,0.00378266,2715.3,2714.8,0.08599624]
[1646867106009,0.00370126,2715.7,2715.0,0.45732419]
[1646867106209,0.00370126,2715.7,2715.1,0.07227909]
[1646867106411,0.06963,2716.1,2715.1,0.07227909]
[1646867107108,0.9209365,2716.7,2715.1,11.5978]
[1646867107309,0.029168,2716.7,2715.2,0.25940312]
[1646867107908,0.00234933,2716.0,2715.2,0.25940312]
[1646867108710,0.029168,2716.3,2715.2,0.07530312]
[1646867109110,0.00234924,2715.8,2715.2,0.07530312]
[1646867109564,0.00234924,2715.8,2714.9,0.0727278]
[1646867109858,0.950178,2716.3,2714.7,0.1841]
[1646867109859,0.04722062,2716.1,2714.7,0.1841]
[1646867110057,0.029168,2715.5,2714.6,0.26009035]
[1646867110259,0.029168,2715.3,2714.7,0.00378484]
[1646867111260,0.029168,2715.3,2714.6,0.1841]
[1646867111559,0.029168,2715.3,2714.7,0.00143878]
[1646867112459,0.029168,2715.3,2714.6,0.26876299]
[1646867112658,0.029168,2715.3,2714.7,0.00379026]
[1646867113508,0.029168,2715.3,2714.6,0.1841]
[1646867113905,0.029168,2715.3,2714.7,0.00379026]
[1646867114714,0.029168,2715.3,2714.4,0.26133879]
[1646867115410,0.029168,2715.3,2714.5,0.3678]
[1646867115609,0.029168,2715.3,2714.5,11.5978]
[1646867115810,0.029168,2715.3,2714.6,0.07172245]
[1646867116311,0.029168,2715.3,2714.7,0.92101]
[1646867116610,0.00235542,2715.8,2714.9,0.07409218]
[1646867116611,0.029168,2715.5,2714.9,0.07409218]
[1646867118060,0.00235568,2715.8,2714.9,0.07409218]
[1646867118260,0.92111,2715.9,2714.8,0.3678]
[1646867118463,0.92111,2715.9,2715.0,0.3678]
[1646867118660,0.00379104,2715.8,2715.0,0.3678]
[1646867119262,0.00379104,2715.8,2714.8,0.08095249]
[1646867119467,0.029168,2715.2,2714.6,0.07389465]
[1646867119662,0.029168,2715.5,2715.4,0.05833599]
[1646867124660,0.3,2715.7,2715.4,0.05833599]
[1646867124857,0.329168,2715.7,2715.4,0.05833599]
[1646867125457,0.08346477,2715.5,2715.4,0.05833599]
[1646867125856,0.029168,2715.5,2715.4,0.05833599]
[1646867129001,1.250418,2715.5,2715.4,0.05833599]
[1646867130705,0.329168,2715.5,2715.4,0.05833599]
[1646867130904,0.3,2715.5,2715.4,0.05833599]
[1646867131221,0.329168,2715.7,2715.4,0.05833599]
[1646867131406,0.029168,2715.7,2715.4,0.05833599]
[1646867132452,0.92121,2715.6,2715.4,0.05833599]
[1646867132657,3.529168,2715.5,2715.4,0.05833599]
[1646867132857,0.470168,2715.5,2715.4,0.05833599]
[1646867133052,1.470168,2715.5,2715.4,0.05833599]
[1646867133253,0.470168,2715.5,2715.4,0.05833599]
[1646867135365,0.441,2715.5,2715.4,0.05833599]
[1646867136006,2.27053345,2715.6,2715.4,0.05833599]
[1646867136007,1.34932345,2715.6,2715.4,0.05833599]
[1646867136206,0.34932345,2715.6,2715.4,0.05833599]
[1646867136609,0.3,2715.6,2715.4,0.05833599]
[1646867137008,0.329168,2715.7,2715.4,0.05833599]
[1646867137612,0.029168,2715.7,2715.4,0.05833599]
[1646867137822,0.3,2715.7,2715.4,0.05833599]
[1646867138209,0.30358026,2715.8,2715.4,0.05833599]
[1646867138412,0.029168,2715.7,2715.4,0.05833599]
[1646867139258,0.30357977,2715.8,2715.4,0.05833599]
[1646867139663,0.00357977,2715.8,2715.4,0.05833599]
[1646867140063,0.3,2715.9,2715.4,0.05833599]
[1646867140265,1.0,2716.0,2715.4,0.05833599]
[1646867140266,0.00357977,2715.8,2715.4,0.05833599]
[1646867140671,0.00357977,2715.8,2715.6,0.06950082]
[1646867140865,0.00357977,2715.8,2715.4,0.05833599]
[1646867141064,0.00357977,2715.8,2715.6,0.06881006]
[1646867141267,0.99116,2716.3,2715.4,0.05833599]
[1646867141268,0.92104,2716.3,2715.4,0.05833599]
[1646867141466,0.00235595,2715.8,2715.5,1.52953182]
[1646867141664,0.00235595,2715.8,2715.6,0.07817049]
[1646867142065,0.00235595,2715.8,2715.4,0.1461142]
[1646867142267,0.06908,2716.4,2715.5,1.52952413]
[1646867142466,0.06908,2716.4,2715.6,0.07223441]
[1646867142666,0.00358195,2715.8,2715.6,0.07223441]
[1646867142867,0.00358195,2715.8,2715.4,1.06588548]
[1646867143107,0.00358195,2715.8,2715.6,0.08027975]
[1646867143913,1.9391038,2716.5,2715.6,0.08027975]
[1646867144208,1.9391038,2716.5,2715.4,0.05833599]
[1646867144209,0.00131783,2715.6,2715.4,0.05833599]
[1646867144613,0.00131783,2715.6,2715.5,1.52953691]
[1646867144812,0.00131783,2715.6,2715.5,1.60222393]
[1646867148158,0.00131783,2715.6,2715.5,12.83222393]
[1646867148159,1.783e-05,2715.6,2715.5,12.83222393]
[1646867148463,1.783e-05,2715.6,2715.5,15.76040542]
[1646867149158,1.783e-05,2715.6,2715.5,16.20002393]
[1646867149364,1.783e-05,2715.6,2715.5,13.20002393]
[1646867149965,1.783e-05,2715.6,2715.5,16.20002393]
[1646867150165,0.00358176,2715.8,2715.7,1.84125507]
[1646867150506,0.00358176,2715.8,2715.7,15.26859198]
[1646867150903,4.57018,2717.0,2715.7,15.26859198]
[1646867150904,0.07018,2717.0,2715.7,15.26859198]
[1646867151113,0.01432416,2716.5,2715.9,11.5978]
[1646867151307,0.01432416,2716.5,2716.1,11.5978]
[1646867152206,0.07019,2717.2,2716.2,11.23]
[1646867152506,0.00358162,2716.4,2716.2,11.23]
[1646867152906,0.00358162,2716.4,2715.7,1.30604]
[1646867153109,0.00358162,2716.4,2715.8,12.75914541]
[1646867153311,0.029168,2716.8,2715.9,1.52914541]
[1646867153508,0.029168,2716.8,2715.7,0.3854]
[1646867153509,0.00358161,2716.4,2715.7,0.3854]
[1646867153712,0.00358161,2716.4,2715.8,1.52920944]
[1646867154459,0.029168,2716.9,2715.8,1.52920944]
[1646867154659,0.0035817,2716.2,2715.8,1.52920944]
[1646867155662,0.029168,2716.5,2715.8,1.52920944]
[1646867155863,0.93473458,2716.8,2715.9,2.0]
[1646867156661,0.93473458,2716.8,2715.9,1.71478]
[1646867156862,0.86454458,2716.8,2715.9,1.71478]
[1646867158407,0.00235375,2716.6,2715.9,1.71478]
[1646867159207,0.00235375,2716.6,2715.7,0.0176]
[1646867159208,0.9209,2716.6,2715.7,0.0176]
[1646867159412,0.9209,2716.6,2715.4,0.35833599]
[1646867159611,0.04544586,2716.5,2715.4,0.05833599]
[1646867160311,0.04544586,2716.5,2715.4,0.13987783]
[1646867160710,0.04544586,2716.5,2715.8,0.00379434]
[1646867161531,0.92097,2716.3,2715.8,0.00379434]
[1646867161769,0.04544586,2716.5,2715.4,0.05833599]
[1646867161958,0.04544586,2716.5,2716.0,0.00379423]
[1646867162760,0.04544586,2716.5,2715.4,0.05833599]
[1646867163160,0.04544586,2716.5,2716.1,0.00379418]
[1646867164165,0.04544586,2716.5,2715.4,0.05833599]
[1646867164368,0.04544586,2716.5,2716.1,0.00356725]
[1646867165165,0.04544586,2716.5,2715.4,0.05833599]
[1646867165610,0.92098,2716.3,2716.1,0.00356725]
[1646867166511,0.92098,2716.3,2715.4,0.05833599]
[1646867166715,0.92098,2716.3,2716.1,0.00356723]
[1646867167715,0.92098,2716.3,2715.4,0.05833599]
[1646867167913,0.92098,2716.3,2716.1,0.00358254]
[1646867168312,0.04544586,2716.5,2716.1,0.00358254]
[1646867168715,0.11556586,2716.5,2716.1,0.00358254]
[1646867168918,0.11556586,2716.5,2715.4,0.05833599]
[1646867169274,0.11556586,2716.5,2716.1,0.00358257]
[1646867170068,0.11556586,2716.5,2715.4,0.05833599]
[1646867170269,0.11556586,2716.5,2716.1,0.00358257]
[1646867171271,0.11556586,2716.5,2715.4,0.05833599]
[1646867171470,0.11556586,2716.5,2716.1,0.00358153]
[1646867171873,0.04544586,2716.5,2716.1,0.00358153]
[1646867172470,0.04544586,2716.5,2715.4,0.05833599]
[1646867172670,0.04544586,2716.5,2716.1,0.00358153]
[1646867173713,0.02355552,2716.4,2715.4,0.05833599]